bitfinex-derivatives/quotes_ETHF0:USTF0_20250102
["timestamp","ask_amount","ask_price","bid_price","bid_amount"]
[1735825750691,0.4542,3463.3,3462.9,2.04359445]
[1735825750881,0.4542,3463.3,3463.2,0.28905]
[1735825753290,4.74928206,3463.3,3463.2,0.28905]
[1735825753689,4.29508206,3463.3,3463.2,0.28905]
[1735825755999,4.93877229,3463.3,3463.2,0.28905]
[1735825757499,4.50507397,3463.3,3463.2,0.28905]
[1735825758796,0.43369832,3463.3,3463.0,0.432]
[1735825759107,0.43369832,3463.3,3463.2,0.28905]
[1735825759399,3.93054832,3463.3,3463.2,1.172]
[1735825759592,3.93053832,3463.3,3463.2,1.172]
[1735825760090,3.49684,3463.3,3463.2,1.172]
[1735825760399,3.2078,3463.3,3463.1,1.172]
[1735825760597,0.28905,3463.2,3463.1,1.172]
[1735825760902,3.2078,3463.3,3463.1,0.28906]
[1735825760903,3.49684,3463.3,3463.1,0.28906]
[1735825761199,4.58119964,3463.2,3463.0,0.28906]
[1735825761392,4.29214964,3463.2,3462.9,1.172]
[1735825761595,0.4476,3463.1,3463.0,0.28907]
[1735825762198,0.73666,3463.1,3463.0,0.28907]
[1735825762589,0.4476,3463.1,3463.0,0.28907]
[1735825763104,9.91689127,3463.1,3463.0,0.28907]
[1735825763597,9.91689127,3463.1,3463.0,0.72927]
[1735825763804,9.91689127,3463.1,3463.0,41.52927]
[1735825764499,9.91689127,3463.1,3463.0,46.52927]
[1735825764805,4.49984731,3463.5,3463.4,0.28903]
[1735825765000,4.49984731,3463.5,3463.4,2.33262445]
[1735825765804,4.49984731,3463.5,3463.4,43.13262445]
[1735825766407,3.37489858,3463.8,3463.7,0.28901]
[1735825766703,3.37489858,3463.8,3463.7,3.50460445]
[1735825767602,3.80851515,3464.0,3463.7,3.63789445]
[1735825767907,3.80851515,3464.0,3463.9,0.28899]
[1735825769101,3.37489858,3464.0,3463.9,0.28899]
[1735825770609,3.37489858,3464.1,3464.0,0.28898]
[1735825770806,3.37489858,3464.1,3464.0,5.54037445]
[1735825772105,3.37489858,3464.5,3464.0,5.25139445]
[1735825772311,3.37489858,3464.5,3464.4,0.28895]
[1735825772609,3.37489858,3464.5,3464.4,1.46095]
[1735825773199,4.93341067,3464.6,3464.4,1.172]
[1735825773398,4.93341067,3464.6,3464.5,0.28894]
[1735825774911,0.43356336,3464.6,3464.5,0.28894]
[1735825776708,0.43356336,3464.6,3464.5,1.46094]
[1735825777606,4.93341067,3464.6,3464.5,1.46094]
[1735825777805,4.93341067,3464.6,3464.5,1.172]
[1735825778012,4.93341067,3464.6,3464.5,1.46094]
[1735825781819,4.93341067,3464.6,3464.5,0.76434]
[1735825782011,4.93341067,3464.6,3464.5,0.28894]
[1735825784914,1.3499,3464.7,3464.3,3.20759445]
[1735825785121,4.72184546,3464.7,3464.6,0.28893]
[1735825786120,4.29964546,3464.7,3464.6,2.33252445]
[1735825786313,3.83334546,3464.7,3464.6,2.33252445]
[1735825786514,4.26686679,3464.7,3464.6,43.13252445]
[1735825787114,4.26686679,3464.7,3464.6,0.28893]
[1735825787639,0.4614,3464.7,3464.6,0.28893]
[1735825788912,4.26694546,3464.7,3464.6,0.28893]
[1735825790525,1.3285322,3464.7,3464.6,0.28893]
[1735825791621,0.895,3464.7,3464.6,0.28893]
[1735825792819,1.3285322,3464.7,3464.6,0.28893]
[1735825793725,4.6966932,3464.7,3464.6,0.28893]
[1735825795519,4.6966932,3464.7,3464.6,2.33252445]
[1735825795726,4.2630932,3464.7,3464.6,2.33252445]
[1735825796625,0.4614,3464.7,3464.6,2.33252445]
[1735825800324,0.4614,3464.7,3464.6,0.28893]
[1735825801927,5.3947894,3464.7,3464.6,0.28893]
[1735825802117,5.3947894,3464.7,3464.6,2.33252445]
[1735825802324,4.9333894,3464.7,3464.6,2.33252445]
[1735825803030,3.36919918,3464.9,3464.6,2.33252445]
[1735825803240,3.36919918,3464.9,3464.8,0.28891]
[1735825804728,3.36919918,3464.9,3464.8,1.45191]
[1735825804928,3.36919918,3464.9,3464.8,0.28891]
[1735825805323,0.43351022,3464.9,3464.8,0.28891]
[1735825806324,4.49984731,3464.9,3464.5,3.92893445]
[1735825806529,4.49984731,3464.9,3464.8,0.28891]
[1735825807824,4.93335753,3464.9,3464.8,0.28891]
[1735825808230,4.93335753,3464.9,3464.8,2.33250445]
[1735825808630,0.43351022,3464.9,3464.8,2.33250445]
[1735825808831,0.43351022,3464.9,3464.8,2.75690445]
[1735825809032,4.24345888,3464.9,3464.8,2.75690445]
[1735825810731,5.62474163,3465.0,3464.9,0.28891]
[1735825811431,5.62474163,3465.0,3464.9,2.33250445]
[1735825811629,5.62474163,3465.0,3464.9,0.28891]
[1735825812134,4.50363149,3465.1,3465.0,0.2889]
[1735825812331,4.50363149,3465.1,3465.0,2.33249445]
[1735825812832,3.36361841,3465.1,3465.0,2.33249445]
[1735825813734,3.37710277,3465.3,3465.2,0.28888]
[1735825813935,3.37710277,3465.3,3465.2,4.65768]
[1735825815832,3.37710277,3465.3,3465.2,9.65768]
[1735825816533,3.83970277,3465.8,3465.7,0.28884]
[1735825816724,3.83970277,3465.8,3465.7,2.33243445]
[1735825817444,3.37710277,3466.0,3465.7,2.04359445]
[1735825817737,3.37710277,3466.0,3465.9,0.28882]
[1735825817931,3.37710277,3466.0,3465.9,1.44982]
[1735825818136,3.37710277,3466.0,3465.9,42.24982]
[1735825818938,3.37710277,3466.2,3465.9,41.961]
[1735825819130,3.37710277,3466.2,3466.1,5.54020445]
[1735825820033,3.37710277,3466.2,3466.1,2.33240445]
[1735825820235,3.37710277,3466.2,3466.1,3.49340445]
[1735825820637,0.4744,3466.4,3466.1,3.20459445]
[1735825821036,0.4744,3466.4,3466.3,0.28879]
[1735825822341,0.90772477,3466.4,3466.3,0.28879]
[1735825822639,1.19651477,3466.4,3466.1,1.161]
[1735825822841,0.90772477,3466.4,3466.1,1.44981]
[1735825823036,0.90772477,3466.4,3466.1,1.161]
[1735825823237,0.90772477,3466.4,3466.1,1.4498]
[1735825823636,0.90772477,3466.4,3466.1,1.161]
[1735825823841,0.43332477,3466.3,3466.1,1.4498]
[1735825824243,0.43332477,3466.3,3466.1,0.2888]
[1735825824843,0.43332477,3466.3,3466.2,0.2888]
[1735825825848,0.43332477,3466.3,3466.1,0.2888]
[1735825826441,0.43332477,3466.3,3466.0,1.161]
[1735825826843,0.43332477,3466.3,3466.2,0.2888]
[1735825827045,3.64112477,3466.3,3466.2,0.2888]
[1735825834247,0.43332477,3466.3,3466.2,0.2888]
[1735825834647,3.92991477,3466.3,3466.2,0.2888]
[1735825836151,3.92991477,3466.3,3466.1,0.2888]
[1735825836353,0.72211477,3466.3,3466.2,0.2888]
[1735825836552,3.92991477,3466.3,3466.2,0.2888]
[1735825836947,3.92992477,3466.3,3466.1,1.4498]
[1735825837141,3.92992477,3466.3,3466.1,1.161]
[1735825837355,3.92992477,3466.3,3466.2,0.2888]
[1735825837752,3.4966,3466.3,3466.2,0.2888]
[1735825838052,3.4966,3466.3,3466.1,1.161]
[1735825838249,3.4966,3466.3,3466.2,0.2888]
[1735825838951,0.72202,3466.2,3465.1,0.72222]
[1735825839153,3.2078,3465.5,3464.9,1.161]
[1735825839453,0.28889,3465.1,3465.0,0.2889]
[1735825839658,1.3465,3465.4,3464.9,1.161]
[1735825839847,0.28889,3465.2,3464.9,1.161]
[1735825840046,0.2889,3465.0,3464.9,1.161]
[1735825840245,0.28891,3464.8,3464.7,4.54611375]
[1735825840660,0.28891,3464.8,3464.7,3.11641375]
[1735825841154,0.4546,3464.8,3464.4,0.28895]
[1735825841351,0.28894,3464.6,3464.2,1.161]
[1735825841755,0.28894,3464.5,3464.4,0.28895]
[1735825841955,0.28894,3464.6,3464.5,0.28894]
[1735825842354,0.28894,3464.5,3464.4,0.28894]
[1735825843058,3.49674,3464.6,3464.5,0.28894]
[1735825844561,3.49674,3464.6,3464.4,0.28894]
[1735825844562,0.28894,3464.5,3464.4,0.28894]
[1735825844764,8.41560708,3464.6,3464.4,0.28894]
[1735825845066,8.12666708,3464.6,3464.1,3.2078]
[1735825845261,0.28895,3464.5,3464.4,0.28894]
[1735825846265,5.20781708,3464.5,3464.4,0.28894]
[1735825846466,4.91886708,3464.5,3464.1,3.2078]
[1735825846665,0.28896,3464.4,3464.1,3.2078]
[1735825846861,4.91886708,3464.5,3464.4,0.28895]
[1735825847057,4.91886708,3464.5,3464.1,3.2078]
[1735825847262,5.20781708,3464.5,3464.3,0.28895]
[1735825847458,5.20781708,3464.5,3464.4,0.28895]
[1735825847671,0.28895,3464.5,3464.4,0.28895]
[1735825848278,7.6930801,3464.6,3464.1,3.2078]
[1735825848478,7.6930801,3464.6,3464.5,0.28894]
[1735825848981,3.2078,3464.6,3464.5,0.28894]
[1735825849574,3.49673,3464.6,3464.5,0.28894]
[1735825850278,3.93031199,3464.6,3464.5,0.28894]
[1735825850983,3.64138199,3464.6,3464.5,0.28894]
[1735825852884,7.00137433,3464.6,3464.5,0.28894]
[1735825854785,3.2078,3464.6,3464.5,0.28894]
[1735825856277,2.23977708,3464.9,3464.3,2.95989445]
[1735825856581,2.23977708,3464.9,3464.8,0.28891]
[1735825859275,2.23977708,3464.9,3464.3,2.95989445]
[1735825859476,3.2078,3464.6,3464.3,2.95989445]
[1735825859685,3.2078,3464.6,3464.5,0.28894]
[1735825860282,3.2078,3464.6,3464.3,2.95989445]
[1735825860470,3.2078,3464.6,3464.5,0.28894]
[1735825860670,3.2078,3464.6,3464.3,2.95989445]
[1735825861083,3.2078,3464.6,3464.5,0.28894]
[1735825862574,3.49673,3464.6,3464.4,0.28894]
[1735825862783,3.49673,3464.6,3464.5,1.161]
[1735825862984,3.2078,3464.6,3464.5,1.44994]
[1735825864484,5.44717194,3464.6,3464.5,1.44994]
[1735825864684,2.23937194,3464.6,3464.5,1.44994]
[1735825865583,2.23937194,3464.6,3464.5,42.24994]
[1735825866085,5.44717194,3465.1,3465.0,0.2889]
[1735825867181,6.56779234,3465.1,3465.0,0.2889]
[1735825868283,7.00129645,3465.1,3465.0,0.2889]
[1735825869390,3.2078,3465.1,3465.0,0.2889]
[1735825871590,3.64130562,3465.1,3465.0,0.2889]
[1735825871890,7.00129796,3465.1,3465.0,0.2889]
[1735825873891,3.79349796,3465.1,3465.0,0.2889]
[1735825876194,3.64887234,3465.2,3465.1,0.28889]
[1735825876391,3.64887234,3465.2,3465.1,1.44989]
[1735825876792,3.35999234,3465.2,3465.1,1.44989]
[1735825877195,3.64887234,3465.2,3465.1,1.44989]
[1735825877392,0.43350562,3465.2,3465.1,1.44989]
[1735825877585,2.47710007,3465.2,3464.3,3.6457]
[1735825877786,0.28893,3464.7,3464.6,0.28893]
[1735825877993,0.28893,3464.6,3464.5,0.28893]
[1735825878196,0.4753,3464.6,3464.5,0.28893]
[1735825878495,0.76423,3464.6,3464.5,0.28893]
[1735825878693,0.4753,3464.6,3464.5,0.28893]
[1735825879997,5.39408572,3464.6,3464.3,4.3688]
[1735825880187,0.9115,3464.5,3464.4,0.28895]
[1735825881299,1.34500562,3464.5,3464.4,0.28895]
[1735825882914,5.83028572,3464.5,3464.4,0.28895]
[1735825883723,5.83028572,3464.5,3464.4,1.44995]
[1735825884220,5.10416495,3464.5,3464.4,1.44995]
[1735825884709,4.19266495,3464.5,3464.4,1.44995]
[1735825885593,5.62474163,3464.6,3464.5,0.28894]
[1735825886298,5.62474163,3464.6,3464.5,1.44994]
[1735825886697,9.81740658,3464.6,3464.5,1.44994]
[1735825888103,3.75915933,3464.6,3464.5,1.44994]
[1735825888994,4.21055933,3464.6,3464.5,1.44994]
[1735825889499,0.4514,3464.6,3464.5,1.44994]
[1735825890420,4.64406495,3464.6,3464.5,1.44994]
[1735825892112,4.64406495,3464.6,3464.5,3.49353445]
[1735825892316,4.19266495,3464.6,3464.5,3.49353445]
[1735825893035,9.81900676,3464.7,3464.5,1.161]
[1735825893332,10.10792676,3464.7,3464.6,0.28893]
[1735825893529,9.81900676,3464.7,3464.6,0.28893]
[1735825894326,4.19266495,3464.7,3464.6,0.28893]
[1735825894809,4.19266495,3464.7,3464.6,0.73393]
[1735825895413,3.2078,3464.8,3464.6,0.445]
[1735825895707,3.2078,3464.8,3464.7,0.28892]
[1735825896202,3.49671,3464.8,3464.7,0.28892]
[1735825897309,7.68203853,3464.8,3464.7,0.28892]
[1735825897526,7.39312853,3464.8,3464.7,0.28892]
[1735825903212,7.68203853,3464.8,3464.7,0.28892]
[1735825903400,7.39312853,3464.8,3464.5,1.161]
[1735825903625,0.28894,3464.7,3464.6,0.28893]
[1735825904206,0.28895,3464.4,3464.3,0.28895]
[1735825904403,0.28895,3464.4,3464.3,1.44995]
[1735825904608,0.28897,3464.2,3464.1,1.44997]
[1735825905227,1.64676,3464.3,3464.2,0.28897]
[1735825905520,1.3578,3464.3,3464.2,0.28897]
[1735825905811,1.3578,3464.3,3464.2,2.33256445]
[1735825905812,0.4447,3464.3,3464.2,2.33256445]
[1735825907112,10.26960296,3464.3,3464.2,2.33256445]
[1735825909514,10.26960296,3464.3,3464.1,1.161]
[1735825909815,4.6337866,3464.3,3464.2,0.28897]
[1735825910913,0.4447,3464.3,3464.2,0.28897]
[1735825911321,0.73366,3464.3,3464.2,1.161]
[1735825911920,0.73366,3464.3,3463.7,0.289]
[1735825911921,0.28899,3463.9,3463.7,0.289]
[1735825912214,0.9162,3463.8,3463.7,0.289]
[1735825912419,1.3548,3463.8,3463.7,0.289]
[1735825913419,4.1890866,3463.8,3463.7,0.289]
[1735825914517,4.94133639,3463.8,3463.7,0.289]
[1735825915921,0.9162,3464.2,3463.8,0.289]
[1735825915922,4.50774559,3463.9,3463.8,0.289]
[1735825916716,4.50774559,3463.9,3463.8,3.4968]
[1735825917228,4.50774559,3464.0,3463.9,0.28899]
[1735825917416,4.50774559,3464.0,3463.9,2.76858445]
[1735825917620,3.39775053,3464.0,3463.9,7.76858445]
[1735825917823,3.39775053,3464.0,3463.9,48.56858445]
[1735825917824,0.59325053,3464.0,3463.9,48.56858445]
[1735825918030,0.55475053,3464.0,3463.9,48.56858445]
[1735825918716,5.63504998,3464.3,3463.9,48.56858445]
[1735825918927,2.25358656,3464.1,3464.0,0.28898]
[1735825919133,2.25358656,3464.1,3464.0,3.49678]
[1735825920033,2.25358656,3464.2,3464.0,3.2078]
[1735825920234,2.25358656,3464.2,3464.1,2.33256445]
[1735825920637,1.16828936,3464.2,3464.1,2.33256445]
[1735825921045,0.55756936,3464.2,3464.1,2.33256445]
[1735825921433,0.9018,3464.9,3464.1,7.0226867]
[1735825921434,3.38037984,3464.6,3464.1,7.0226867]
[1735825921634,3.38037984,3464.6,3464.5,5.54033445]
[1735825921836,3.38037984,3464.6,3464.5,6.70133445]
[1735825922741,3.38037984,3464.7,3464.6,0.28893]
[1735825923041,3.38037984,3464.7,3464.6,2.33252445]
[1735825924041,0.896,3465.1,3464.6,2.04359445]
[1735825924042,3.38037984,3464.8,3464.6,2.04359445]
[1735825924257,3.38037984,3464.8,3464.7,0.28892]
[1735825925247,3.38037984,3464.8,3464.7,1.44992]
[1735825926733,7.01064998,3465.1,3465.0,0.2889]
[1735825927339,7.01064998,3465.1,3464.9,0.2889]
[1735825927733,10.60776709,3465.1,3464.9,0.2889]
[1735825927941,10.60776709,3465.1,3465.0,0.2889]
[1735825928945,10.89665709,3465.1,3464.8,0.28891]
[1735825929445,10.89665709,3465.1,3464.7,0.73111]
[1735825929645,10.89665709,3465.1,3464.9,0.28891]
[1735825929947,17.65136154,3465.1,3464.4,1.161]
[1735825930139,17.65136154,3465.1,3464.4,1.44994]
[1735825930140,0.28893,3464.7,3464.4,1.44994]
[1735825930446,3.2078,3464.8,3464.6,0.28893]
[1735825930745,3.49672,3464.8,3464.5,0.28894]
[1735825931138,3.2078,3464.8,3464.3,1.161]
[1735825931345,0.28894,3464.6,3464.4,0.28894]
[1735825931547,0.47,3464.5,3464.4,0.28894]
[1735825931842,0.47,3464.5,3464.1,4.3688]
[1735825932040,3.2078,3464.3,3463.4,2.04359445]
[1735825932245,3.2078,3463.8,3463.3,6.79696026]
[1735825932443,0.9089,3463.7,3463.5,0.28902]
[1735825932764,0.9089,3463.7,3463.3,6.79696026]
[1735825932934,3.2078,3463.4,3463.3,4.63496026]
[1735825933139,3.2078,3463.4,3463.3,0.28904]
[1735825933350,3.2078,3463.4,3462.9,2.04359445]
[1735825933645,3.2078,3463.4,3463.3,0.28904]
[1735825933848,3.2078,3463.4,3463.2,0.28904]
[1735825934542,3.2078,3463.4,3463.3,0.28904]
[1735825934945,12.86372807,3463.4,3463.3,0.28904]
[1735825935742,9.65592807,3463.4,3463.3,0.28904]
[1735825935946,4.03085958,3463.4,3463.3,0.28904]
[1735825937034,0.43374247,3463.5,3463.3,0.28903]
[1735825937351,0.28904,3463.3,3463.1,0.28906]
[1735825937648,0.28904,3463.4,3463.1,0.28906]
[1735825938337,0.72279247,3463.2,3462.9,0.28907]
[1735825938542,0.4729,3463.1,3463.0,1.45006]
[1735825939146,0.4729,3463.1,3463.0,1.161]
[1735825939445,0.4729,3463.1,3463.0,1.45007]
[1735825939645,0.90664247,3463.1,3463.0,1.45007]
[1735825940947,0.4729,3463.1,3463.0,1.45007]
[1735825954253,3.6807,3463.1,3463.0,1.45007]
[1735825954460,3.6807,3463.1,3463.0,1.161]
[1735825955159,3.96979,3463.1,3463.0,1.161]
[1735825955361,3.6807,3463.1,3463.0,1.161]
[1735825955758,3.6807,3463.1,3463.0,1.45009]
[1735825956448,3.6807,3463.1,3463.0,1.161]
[1735825957757,3.96979,3463.1,3463.0,1.161]
[1735825958155,3.6807,3463.1,3463.0,1.161]
[1735825958556,3.96979,3463.1,3463.0,1.161]
[1735825959256,7.77008828,3463.1,3463.0,1.161]
[1735825960562,7.3362915,3463.1,3463.0,1.161]
[1735825961155,7.0472015,3463.1,3463.0,1.161]
[1735825961359,7.0472015,3463.1,3463.0,1.45009]
[1735825962058,3.6807,3463.1,3463.0,1.45009]
[1735825963163,3.2078,3463.1,3463.0,1.45009]
[1735825963557,6.5743015,3463.1,3463.0,1.45009]
[1735825965059,3.2078,3463.1,3463.0,1.45009]
[1735825969766,3.2078,3463.1,3463.0,0.28909]
[1735825970574,3.49689,3463.1,3463.0,0.28909]
[1735825970869,3.2078,3463.1,3463.0,0.28909]
[1735825971064,3.2078,3463.1,3462.8,1.161]
[1735825971265,2.97379445,3463.0,3462.5,0.28913]
[1735825971465,2.97379445,3463.0,3462.4,1.6005]
[1735825971466,3.2078,3462.7,3462.6,0.28913]
[1735825973568,3.64159057,3462.7,3462.6,0.28913]
[1735825976275,7.30846255,3462.7,3462.6,1.19106588]
[1735825977075,4.10066255,3462.7,3462.6,1.19106588]
[1735825977973,4.10066255,3462.7,3462.6,2.09300176]
[1735825978275,6.76139777,3463.4,3463.3,0.28907]
[1735825978479,6.76139777,3463.4,3463.3,1.45007]
[1735825978874,6.76139777,3463.4,3463.3,42.25007]
[1735825979775,4.50293123,3463.4,3463.3,42.25007]
[1735825980279,4.50293123,3463.4,3463.3,44.30089186]
[1735825981183,3.2078,3463.5,3463.4,0.28906]
[1735825982575,7.71073123,3463.5,3463.4,0.28906]
[1735825983184,4.50293123,3463.5,3463.4,0.28906]
[1735825983976,3.37511517,3463.6,3463.3,3.21182186]
[1735825984182,3.37511517,3463.6,3463.5,0.28905]
[1735825985083,3.37511517,3463.6,3463.5,3.49685]
[1735825986588,3.37511517,3463.7,3463.6,0.28904]
[1735825986786,2.28257782,3463.7,3463.6,2.33986186]
[1735825987092,2.04748692,3463.7,3463.6,9.39068372]
[1735825987484,2.04748692,3463.7,3463.6,4.39068372]
[1735825987681,4.50293123,3464.0,3463.9,0.28902]
[1735825987890,2.94391392,3464.4,3464.3,0.28899]
[1735825988093,2.94391392,3464.4,3464.3,6.70861186]
[1735825988390,1.94357198,3464.4,3464.3,52.50861186]
[1735825988589,1.21907198,3464.4,3464.3,52.50861186]
[1735825989092,0.31707197,3464.4,3464.3,52.50861186]
[1735825989295,3.6925,3465.1,3464.3,52.21962186]
[1735825989494,3.6925,3465.1,3465.0,2.33975186]
[1735825989699,3.6925,3465.1,3465.0,3.50075186]
[1735825992591,3.6925,3465.1,3464.3,3.93026]
[1735825992794,3.6925,3465.1,3464.8,0.28894]
[1735825993186,3.6925,3465.1,3464.4,2.05082186]
[1735825993389,3.6925,3465.1,3464.5,1.16]
[1735825993585,0.28893,3465.0,3464.6,0.28896]
[1735825994092,0.28893,3465.0,3464.7,0.28895]
[1735825994299,3.98143,3465.1,3464.7,0.28895]
[1735825994596,3.98143,3465.1,3464.5,1.16]
[1735825994597,3.6925,3465.1,3465.0,0.28893]
[1735825996592,3.6925,3465.1,3464.7,2.05082186]
[1735825997990,3.6925,3465.1,3465.0,0.28893]
[1735825999698,3.98142,3465.1,3464.6,0.72241]
[1735825999896,0.72244,3464.5,3463.8,0.28902]
[1735826000096,5.25862186,3463.9,3463.5,1.0]
[1735826000292,5.25862186,3463.9,3463.5,3.05082186]
[1735826000293,3.2078,3463.9,3463.5,3.05082186]
[1735826000901,3.2078,3463.9,3463.6,0.28904]
[1735826002092,3.2078,3463.9,3463.7,0.28903]
[1735826002298,3.2078,3463.9,3463.5,4.21082186]
[1735826002502,3.2078,3463.9,3463.8,0.28903]
[1735826003800,3.2078,3463.9,3463.6,0.28904]
[1735826004097,5.25862186,3463.9,3463.5,1.28905]
[1735826004395,5.25862186,3463.9,3463.5,0.2772]
[1735826004705,5.25862186,3463.9,3463.6,0.28904]
[1735826004926,5.25862186,3463.9,3463.5,0.2772]
[1735826005099,0.28903,3463.8,3463.3,0.28906]
[1735826005292,3.2078,3463.5,3463.0,1.16]
[1735826005604,3.2078,3463.1,3463.0,1.44909]
[1735826008203,3.2078,3463.1,3463.0,0.28909]
[1735826009106,3.2078,3463.1,3463.0,1.45009]
[1735826009308,0.8795,3463.4,3463.0,1.161]
[1735826009606,0.8795,3463.4,3463.3,0.28906]
[1735826011898,3.2078,3463.7,3463.0,1.161]
[1735826012106,3.2078,3463.7,3463.6,0.28903]
[1735826015608,4.5988,3464.1,3464.0,0.28899]
[1735826015911,4.5988,3464.1,3464.0,3.50081186]
[1735826016114,4.5988,3464.1,3464.0,1.44999]
[1735826017208,1.391,3464.1,3464.0,1.44999]
[1735826019317,1.391,3464.1,3463.2,0.72264]
[1735826019617,1.391,3464.1,3464.0,0.28899]
[1735826019811,4.5988,3464.1,3464.0,0.28899]
[1735826024208,4.47933234,3464.4,3464.3,0.28896]
[1735826024412,4.47933234,3464.4,3464.3,2.33978186]
[1735826024918,3.76720234,3464.4,3464.3,2.33978186]
[1735826025417,3.04730234,3464.4,3464.3,7.33978186]
[1735826025620,3.2078,3465.0,3464.9,0.28891]
[1735826025820,3.2078,3465.0,3464.9,1.46191]
[1735826026014,3.2078,3465.0,3464.9,42.26191]
[1735826026515,3.2078,3465.0,3464.9,1.46191]
[1735826029024,3.2078,3465.0,3464.9,0.28891]
[1735826029226,3.2078,3465.0,3464.4,3.9302]
[1735826029227,3.2078,3465.0,3464.8,0.28892]
[1735826029413,0.4676,3464.9,3464.8,0.28892]
[1735826029921,3.2078,3465.0,3464.7,2.05082186]
[1735826030116,4.1655,3465.4,3465.3,0.28888]
[1735826030520,0.9577,3465.4,3465.3,0.28888]
[1735826030922,4.1655,3465.4,3465.3,0.28888]
[1735826032417,4.1655,3465.4,3465.1,1.172]
[1735826032641,4.1655,3465.4,3465.3,0.28888]
[1735826032822,4.45437,3465.4,3465.1,1.172]
[1735826033026,4.1655,3465.4,3465.3,0.28888]
[1735826033217,4.1655,3465.4,3465.1,1.172]
[1735826033414,4.1655,3465.4,3465.3,0.28888]
[1735826037720,3.6869,3465.4,3465.3,0.28888]
[1735826038620,3.2078,3465.4,3465.3,2.33970186]
[1735826039824,0.4403,3465.9,3465.8,0.28884]
[1735826040124,5.59701353,3466.1,3466.0,0.28882]
[1735826040843,3.6474,3466.5,3466.4,0.28879]
[1735826040844,9.24441353,3466.5,3466.4,0.28879]
[1735826042219,5.88695332,3466.5,3466.4,0.28879]
[1735826045026,3.6474,3466.5,3466.4,0.28879]
[1735826045219,3.93618,3466.5,3466.4,0.28879]
[1735826045619,0.2888,3466.4,3466.3,0.28879]
[1735826048929,2.52835332,3466.4,3466.3,0.28879]
[1735826051728,0.2888,3466.3,3466.2,0.2888]
[1735826053626,2.23955332,3466.4,3466.1,1.172]
[1735826053939,2.23955332,3466.4,3466.3,0.2888]
[1735826054421,2.52834332,3466.4,3466.3,0.2888]
[1735826055628,0.28879,3466.4,3466.3,0.2888]
[1735826055928,5.88695332,3466.5,3466.1,1.172]
[1735826056129,5.88695332,3466.5,3466.4,0.28879]
[1735826056332,6.17573332,3466.5,3466.4,0.28879]
[1735826056632,5.88695332,3466.5,3466.4,0.28879]
[1735826056834,6.17573332,3466.5,3466.4,0.28879]
[1735826057027,3.93618,3466.5,3466.4,0.28879]
[1735826057633,3.93618,3466.5,3466.1,0.2888]
[1735826057634,0.28881,3466.2,3466.1,0.2888]
[1735826059032,2.05082186,3466.4,3465.4,0.4497]
[1735826059265,2.05082186,3466.4,3465.6,0.28884]
[1735826059266,0.28885,3465.7,3465.6,0.28884]
[1735826060934,0.28884,3465.8,3465.7,0.28884]
[1735826061136,0.4797,3465.9,3465.5,1.173]
[1735826061452,0.75523,3466.0,3465.9,0.28883]
[1735826061641,0.4664,3466.0,3465.9,0.28883]
[1735826061843,5.44735332,3466.1,3465.9,2.05082186]
[1735826062136,2.23955332,3466.1,3466.0,0.75422]
[1735826062442,2.23955332,3466.1,3466.0,1.20262]
[1735826062639,2.23955332,3466.1,3466.0,1.48622]
[1735826063446,5.44735332,3466.5,3466.0,1.1974]
[1735826063644,5.44735332,3466.5,3466.1,1.173]
[1735826063837,0.28881,3466.2,3466.1,1.46181]
[1735826064137,0.28885,3465.8,3465.6,1.46185]
[1735826064539,0.28885,3465.7,3465.6,1.173]
[1735826064758,0.72545,3465.7,3465.6,1.173]
[1735826065638,4.36654,3465.7,3465.2,0.28888]
[1735826065841,3.2078,3465.3,3465.1,0.4474]
[1735826066044,0.2889,3465.1,3465.0,1.4619]
[1735826066444,0.4824,3465.2,3465.0,1.4619]
[1735826066445,0.4824,3465.2,3465.1,0.2889]
[1735826067238,3.2078,3465.3,3465.0,1.173]
[1735826067446,2.24100815,3465.2,3465.1,0.2889]
[1735826070041,3.35241693,3465.2,3465.1,0.2889]
[1735826070850,0.2889,3465.1,3464.9,0.28891]
[1735826071047,3.64130693,3465.2,3465.0,0.2889]
[1735826071251,3.35241693,3465.2,3465.1,0.2889]
[1735826072748,2.24513835,3465.2,3465.1,0.2889]
[1735826072940,2.24513835,3465.2,3464.9,1.173]
[1735826073145,0.28891,3465.0,3464.9,1.173]
[1735826073651,0.28891,3465.0,3464.8,1.46192]
[1735826074146,3.81581693,3465.1,3464.9,0.28891]
[1735826074347,3.81581693,3465.1,3464.8,1.173]
[1735826074948,3.2078,3464.9,3464.8,1.46192]
[1735826075146,5.74191656,3464.9,3464.8,1.173]
[1735826075444,0.28893,3464.7,3464.6,2.0893]
[1735826075648,5.74192656,3464.9,3464.6,2.37824]
[1735826075949,5.74192656,3464.9,3464.2,40.8]
[1735826075950,5.45300656,3464.9,3464.2,40.8]
[1735826076148,0.28896,3464.4,3464.3,1.173]
[1735826076648,0.28896,3464.3,3464.2,0.4506]
[1735826076844,0.28898,3464.1,3463.8,47.66027342]
[1735826077049,0.28898,3464.1,3463.9,1.46199]
[1735826077352,0.28898,3464.2,3463.9,1.173]
[1735826077551,0.28898,3464.2,3464.0,0.28899]
[1735826077751,1.20907,3464.3,3464.1,0.28898]
[1735826078049,0.9201,3464.3,3464.0,0.28899]
[1735826078247,0.28897,3464.2,3464.0,0.28899]
[1735826078553,3.35241693,3464.2,3464.1,0.28898]
[1735826078851,3.35241693,3464.2,3464.0,1.46198]
[1735826079051,3.64139693,3464.2,3464.0,1.46198]
[1735826079447,3.35241693,3464.2,3464.0,1.173]
[1735826079753,0.28898,3464.1,3464.0,1.173]
[1735826080049,2.24192182,3464.2,3464.0,3.22382186]
[1735826080252,2.24192182,3464.2,3464.1,0.28898]
[1735826081452,2.24192182,3464.3,3464.2,0.28897]
[1735826082149,2.24192182,3464.3,3464.2,0.74847]
[1735826082552,3.2078,3464.4,3464.2,0.4595]
[1735826082850,3.2078,3464.4,3464.3,0.28896]